fUSD/lending_fUSD_20260528
["ID","MTS","AMOUNT","RATE_DAILY","PERIOD"]
[423222812,1779946795000,-704.41178217,0.00012006,2]
[423222808,1779946795000,-704.41178217,0.00012006,2]
[423222807,1779946795000,-704.41178217,0.00012006,2]
[423222806,1779946795000,-704.41178217,0.00012006,2]
[423222804,1779946795000,-704.41178217,0.00012006,2]
[423222805,1779946795000,-704.41178217,0.00012006,2]
[423222803,1779946795000,-704.41178217,0.00012006,2]
[423222809,1779946795000,-704.41178217,0.00012006,2]
[423222824,1779946796000,-704.41178217,0.00012006,2]
[423222826,1779946796000,-704.41178217,0.00012006,2]
[423222827,1779946796000,-704.41178217,0.00012006,2]
[423222825,1779946796000,-704.41178217,0.00012006,2]
[423222823,1779946796000,-704.41178217,0.00012006,2]
[423222822,1779946796000,-704.41178217,0.00012006,2]
[423222816,1779946796000,-704.41178217,0.00012006,2]
[423222821,1779946796000,-704.41178217,0.00012006,2]
[423222820,1779946796000,-704.41178217,0.00012006,2]
[423222819,1779946796000,-704.41178217,0.00012006,2]
[423222818,1779946796000,-704.41178217,0.00012006,2]
[423222817,1779946796000,-704.41178217,0.00012006,2]
[423222828,1779946796000,-704.41178217,0.00012006,2]
[423222829,1779946796000,-704.41178217,0.00012006,2]
[423222838,1779946796000,-704.41178217,0.00012006,2]
[423222831,1779946796000,-704.41178217,0.00012006,2]
[423222845,1779946796000,-704.41178217,0.00012006,2]
[423222844,1779946796000,-704.41178217,0.00012006,2]
[423222843,1779946796000,-704.41178217,0.00012006,2]
[423222842,1779946796000,-704.41178217,0.00012006,2]
[423222841,1779946796000,-704.41178217,0.00012006,2]
[423222840,1779946796000,-704.41178217,0.00012006,2]
[423222830,1779946796000,-704.41178217,0.00012006,2]
[423222837,1779946796000,-704.41178217,0.00012006,2]
[423222836,1779946796000,-704.41178217,0.00012006,2]
[423222835,1779946796000,-704.41178217,0.00012006,2]
[423222834,1779946796000,-704.41178217,0.00012006,2]
[423222832,1779946796000,-704.41178217,0.00012006,2]
[423222833,1779946796000,-704.41178217,0.00012006,2]
[423222839,1779946796000,-704.41178217,0.00012006,2]
[423222858,1779946797000,-704.41178217,0.00012006,2]
[423222856,1779946797000,-704.41178217,0.00012006,2]
[423222857,1779946797000,-704.41178217,0.00012006,2]
[423222855,1779946797000,-704.41178217,0.00012006,2]
[423222854,1779946797000,-704.41178217,0.00012006,2]
[423222853,1779946797000,-704.41178217,0.00012006,2]
[423222849,1779946797000,-704.41178217,0.00012006,2]
[423222851,1779946797000,-704.41178217,0.00012006,2]
[423222848,1779946797000,-704.41178217,0.00012006,2]
[423222847,1779946797000,-704.41178217,0.00012006,2]
[423222846,1779946797000,-704.41178217,0.00012006,2]
[423222859,1779946797000,-704.41178217,0.00012006,2]
[423222850,1779946797000,-704.41178217,0.00012006,2]
[423222860,1779946797000,-704.41178217,0.00012006,2]
[423222852,1779946797000,-704.41178217,0.00012006,2]
[423222862,1779946797000,-697.36766435,0.00012006,2]
[423222875,1779946797000,-697.36766435,0.00012006,2]
[423222874,1779946797000,-697.36766435,0.00012006,2]
[423222872,1779946797000,-697.36766435,0.00012006,2]
[423222871,1779946797000,-697.36766435,0.00012006,2]
[423222869,1779946797000,-697.36766435,0.00012006,2]
[423222876,1779946797000,-697.36766435,0.00012006,2]
[423222873,1779946797000,-697.36766435,0.00012006,2]
[423222868,1779946797000,-697.36766435,0.00012006,2]
[423222867,1779946797000,-697.36766435,0.00012006,2]
[423222866,1779946797000,-697.36766435,0.00012006,2]
[423222865,1779946797000,-697.36766435,0.00012006,2]
[423222864,1779946797000,-697.36766435,0.00012006,2]
[423222863,1779946797000,-697.36766435,0.00012006,2]
[423222870,1779946797000,-697.36766435,0.00012006,2]
[423222861,1779946797000,-697.36766435,0.00012006,2]
[423222882,1779946798000,-697.36766435,0.00012006,2]
[423222877,1779946798000,-697.36766435,0.00012006,2]
[423222878,1779946798000,-697.36766435,0.00012006,2]
[423222880,1779946798000,-697.36766435,0.00012006,2]
[423222879,1779946798000,-697.36766435,0.00012006,2]
[423222881,1779946798000,-697.36766435,0.00012006,2]
[423222883,1779946798000,-697.36766435,0.00012006,2]
[423222884,1779946798000,-697.36766435,0.00012006,2]
[423222885,1779946798000,-697.36766435,0.00012006,2]
[423222886,1779946798000,-697.36766435,0.00012006,2]
[423222888,1779946798000,-697.36766435,0.00012006,2]
[423222889,1779946798000,-697.36766441,0.00012006,2]
[423222891,1779946798000,-4504.0,0.00012007,2]
[423222890,1779946798000,-697.36766441,0.00012006,2]
[423222892,1779946798000,-5989.0,0.00012031,2]
[423222893,1779946798000,-16452.78221285,0.00012055,2]
[423222887,1779946798000,-697.36766435,0.00012006,2]
[423222894,1779946819000,-1570.21778715,0.00012055,2]
[423222896,1779946873000,-202.53711781,0.00011955,2]
[423222897,1779946926000,-1830.39268224,0.00012055,2]
[423222898,1779946946000,-169.60731776,0.00012055,2]
[423222899,1779947000000,-200.0,0.00012055,2]
[423222900,1779947076000,184.75,9.716e-05,2]
[423222901,1779947145000,161.20396869,0.0001,2]
[423222903,1779947149000,-1163.06121471,0.00012023,2]
[423222902,1779947149000,-213.92,0.00011677,2]
[423222905,1779947190000,-206.56598474,0.00011961,2]
[423222904,1779947190000,-202.5371178,0.00011923,2]
[423222907,1779947252000,-151.86926918,0.00011992,2]
[423222906,1779947252000,-477.126503,0.00011932,2]
[423222908,1779947252000,-268.00503895,0.00011992,2]
[423222911,1779947252000,-300.0,0.00012023,2]
[423222910,1779947252000,-36.93878529,0.00012023,2]
[423222912,1779947252000,-300.0,0.00012023,2]
[423222913,1779947252000,-272.20269199,0.00012023,2]
[423222909,1779947252000,-300.0,0.00012022,2]
[423222914,1779947253000,-609.34389006,0.00012023,2]
[423222916,1779947300000,204.57,5.752e-05,2]
[423222917,1779947340000,1000.0,0.00028079,120]
[423222919,1779947357000,-294.73038577,0.00011501,2]
[423222918,1779947357000,-150.0,0.00011493,2]
[423222920,1779947410000,-500.0,0.00011484,2]
[423222925,1779947431000,-150.0,0.00011488,2]
[423222973,1779947432000,-2726.54,0.00012326,2]
[423222968,1779947432000,-200.0,0.00012176,2]
[423222966,1779947432000,-442.3205589,0.00012175,2]
[423222964,1779947432000,-200.0,0.00012169,2]
[423222962,1779947432000,-268.13,0.00012156,2]
[423222959,1779947432000,-13089.29638748,0.00012025,2]
[423222957,1779947432000,-500.0,0.00012024,2]
[423222953,1779947432000,-112.86413123,0.00012024,2]
[423222974,1779947432000,-3986.0,0.00012327,2]
[423222960,1779947432000,-200.0,0.00012055,2]
[423222961,1779947432000,-990.31,0.00012144,2]
[423222970,1779947432000,-200.0,0.00012297,2]
[423222972,1779947432000,-1739.79,0.00012315,2]
[423222971,1779947432000,-200.0,0.00012297,2]
[423222975,1779947432000,-450.07,0.00012329,2]
[423222969,1779947432000,-664.16,0.00012239,2]
[423222956,1779947432000,-500.0,0.00012024,2]
[423222976,1779947432000,-8929.97806087,0.00012334,2]
[423222978,1779947432000,-16530.0,0.00012388,2]
[423222980,1779947432000,-755.0,0.00012396,2]
[423222996,1779947432000,-4764.55,0.00012439,2]
[423222983,1779947432000,-13513.01000026,0.00012412,2]
[423222993,1779947432000,-471.39238788,0.00012431,2]
[423222995,1779947432000,-93528.93,0.00012433,2]
[423222994,1779947432000,-500.0,0.00012432,2]
[423222997,1779947432000,-500.0,0.00012467,2]
[423222967,1779947432000,-200.0,0.00012176,2]
[423222958,1779947432000,-16640.59701332,0.00012025,2]
[423222949,1779947432000,-105.58292658,0.00012024,2]
[423222952,1779947432000,-500.0,0.00012024,2]
[423222985,1779947432000,-200.0,0.0001242,2]
[423222927,1779947432000,-166.92961423,0.00011501,2]
[423222928,1779947432000,-204.57,0.00011503,2]
[423222929,1779947432000,-150.0,0.00011597,2]
[423222926,1779947432000,-325.12945101,0.00011501,2]
[423222930,1779947432000,-198.98506562,0.00011597,2]
[423222932,1779947432000,-150.0,0.00012023,2]
[423222931,1779947432000,-156.57208,0.00011597,2]
[423222934,1779947432000,-285.1465188,0.00012024,2]
[423222937,1779947432000,-93.5999669,0.00012024,2]
[423222935,1779947432000,-214.8534812,0.00012024,2]
[423222936,1779947432000,-500.0,0.00012024,2]
[423222933,1779947432000,-273.0,0.00012023,2]
[423222938,1779947432000,-356.44950306,0.00012024,2]
[423222941,1779947432000,-93.87804991,0.00012024,2]
[423222940,1779947432000,-500.0,0.00012024,2]
[423222939,1779947432000,-49.95053004,0.00012024,2]
[423222942,1779947432000,-406.12195009,0.00012024,2]
[423222944,1779947432000,-67.70487667,0.00012024,2]
[423222947,1779947432000,-161.58292658,0.00012024,2]
[423222946,1779947432000,-500.0,0.00012024,2]
[423222943,1779947432000,-329.83169495,0.00012024,2]
[423222945,1779947432000,-102.46342838,0.00012024,2]
[423222950,1779947432000,-394.41707342,0.00012024,2]
[423222948,1779947432000,-338.41707342,0.00012024,2]
[423222951,1779947432000,-500.0,0.00012024,2]
[423222954,1779947432000,-387.13586877,0.00012024,2]
[423222955,1779947432000,-163.86782468,0.00012024,2]
[423222992,1779947432000,-604.62075685,0.00012431,2]
[423223016,1779947432000,-664.16,0.00012919,2]
[423222990,1779947432000,-500.0,0.00012431,2]
[423223028,1779947432000,-150.0,0.00013488,2]
[423223035,1779947432000,-150.0,0.00013654,2]
[423223029,1779947432000,-150.0,0.00013488,2]
[423223027,1779947432000,-150.0,0.00013488,2]
[423223030,1779947432000,-150.0,0.00013488,2]
[423223033,1779947432000,-150.0,0.00013571,2]
[423223034,1779947432000,-435.08935404,0.00013599,2]
[423223031,1779947432000,-150.0,0.00013488,2]
[423223032,1779947432000,-190.07,0.0001355,2]
[423223037,1779947432000,-500.0,0.00013698,2]
[423223046,1779947432000,-9999.99,0.00013699,2]
[423223036,1779947432000,-150.0,0.00013675,2]
[423223045,1779947432000,-5463.66,0.00013699,2]
[423222987,1779947432000,-200.0,0.0001242,2]
[423223039,1779947432000,-500.0,0.00013698,2]
[423223048,1779947432000,-1630.54,0.00013699,2]
[423223044,1779947432000,-166.66,0.00013699,2]
[423223047,1779947432000,-299.99,0.00013699,2]
[423223038,1779947432000,-500.7401619,0.00013698,2]
[423223041,1779947432000,-500.0,0.00013698,2]
[423223042,1779947432000,-500.0,0.00013698,2]
[423223040,1779947432000,-500.0,0.00013698,2]
[423223049,1779947432000,-3746.6,0.00013699,2]
[423223052,1779947432000,-12312.04273041,0.00013699,2]
[423223051,1779947432000,-18266.21726959,0.00013699,2]
[423223050,1779947432000,-9999.99,0.00013699,2]
[423223053,1779947432000,-21971.52774445,0.00013699,2]
[423223026,1779947432000,-150.0,0.00013488,2]
[423223025,1779947432000,-150.0,0.00013488,2]
[423223043,1779947432000,-200.0,0.00013699,2]
[423223022,1779947432000,-8929.97806079,0.00013474,2]
[423223024,1779947432000,-150.0,0.00013488,2]
[423222988,1779947432000,-257.3165872,0.00012431,2]
[423222998,1779947432000,-898.94571628,0.00012524,2]
[423223000,1779947432000,-200.0,0.00012544,2]
[423223010,1779947432000,-160.13321946,0.00012743,7]
[423223002,1779947432000,-664.16,0.00012579,2]
[423223001,1779947432000,-387.83,0.00012561,2]
[423223006,1779947432000,-2000.0,0.00012702,2]
[423223005,1779947432000,-500.0,0.00012648,2]
[423223007,1779947432000,-500.0,0.00012705,2]
[423223003,1779947432000,-8929.97806079,0.00012619,2]
[423222999,1779947432000,-200.0,0.00012544,2]
[423223004,1779947432000,-250.0,0.00012642,2]
[423222991,1779947432000,-500.0,0.00012431,2]
[423223008,1779947432000,-151.86926918,0.00012731,2]
[423223009,1779947432000,-156.57208,0.00012731,2]
[423223021,1779947432000,-8929.97806079,0.00013189,2]
[423223020,1779947432000,-250.0,0.00013158,2]
[423223018,1779947432000,-255.0,0.00013105,2]
[423223017,1779947432000,-508.81616211,0.00012979,2]
[423223019,1779947432000,-729.33,0.00013157,2]
[423223012,1779947432000,-729.33,0.00012836,2]
[423223014,1779947432000,-2287.16327612,0.00012904,2]
[423223013,1779947432000,-6642.81478467,0.00012904,2]
[423223023,1779947432000,-729.33,0.00013478,2]
[423223011,1779947432000,-207.06,0.000128,2]
[423223015,1779947432000,-677.57819498,0.00012917,2]
[423223075,1779947438000,-500.0,0.00013699,2]
[423223076,1779947438000,-177.61747639,0.00013699,2]
[423223074,1779947438000,-500.0,0.00013699,2]
[423223079,1779947438000,-500.0,0.00013699,2]
[423223078,1779947438000,-500.0,0.00013699,2]
[423223081,1779947438000,-500.0,0.00013699,2]
[423223085,1779947438000,-500.0,0.00013699,2]
[423223083,1779947438000,-500.0,0.00013699,2]
[423223082,1779947438000,-500.0,0.00013699,2]
[423223077,1779947438000,-500.0,0.00013699,2]
[423223084,1779947438000,-500.0,0.00013699,2]
[423223071,1779947438000,-500.0,0.00013699,2]
[423223086,1779947438000,-150.0,0.00013702,2]
[423223080,1779947438000,-500.0,0.00013699,2]
[423223073,1779947438000,-500.0,0.00013699,2]
[423223064,1779947438000,-611.03926499,0.00013699,2]
[423223067,1779947438000,-3858.80925249,0.00013699,2]
[423223069,1779947438000,-500.0,0.00013699,2]
[423223070,1779947438000,-500.0,0.00013699,2]
[423223065,1779947438000,-499.99,0.00013699,2]
[423223066,1779947438000,-491.72074751,0.00013699,2]
[423223068,1779947438000,-500.0,0.00013699,2]
[423223063,1779947438000,-388.95073501,0.00013699,2]
[423223062,1779947438000,-59.04926499,0.00013699,2]
[423223061,1779947438000,-91.94073501,0.00013699,2]
[423223060,1779947438000,-2946.99,0.00013699,2]
[423223059,1779947438000,-515.78992394,0.00013699,2]
[423223089,1779947438000,-150.0,0.00013737,2]
[423223057,1779947438000,-418.98263072,0.00013699,2]
[423223058,1779947438000,-2093.68970089,0.00013699,2]
[423223072,1779947438000,-500.0,0.00013699,2]
[423223088,1779947438000,-150.0,0.00013737,2]
[423223121,1779947438000,-454.91475282,0.00014045,2]
[423223087,1779947438000,-150.0,0.00013737,2]
[423223090,1779947438000,-942.52437898,0.0001376,2]
[423223118,1779947438000,-413.32766839,0.0001399,2]
[423223120,1779947438000,-250.0,0.00014,2]
[423223119,1779947438000,-14.01584309,0.0001399,2]
[423223117,1779947438000,-983.744131,0.0001399,2]
[423223115,1779947438000,-496.19290314,0.0001399,2]
[423223116,1779947438000,-618.6790189,0.0001399,2]
[423223107,1779947438000,-150.0,0.00013916,2]
[423223103,1779947438000,-500.0,0.00013915,2]
[423223113,1779947438000,-11733.69196958,0.0001399,2]
[423223109,1779947438000,-166.66,0.00013973,2]
[423223106,1779947438000,-500.0,0.00013915,2]
[423223108,1779947438000,-435.08935404,0.00013971,2]
[423223112,1779947438000,-150.0,0.00013987,2]
[423223110,1779947438000,-150.0,0.00013987,2]
[423223114,1779947438000,-594.98415368,0.0001399,2]
[423223105,1779947438000,-500.0,0.00013915,2]
[423223092,1779947438000,-3892.53075856,0.0001376,2]
[423223111,1779947438000,-150.0,0.00013987,2]
[423223091,1779947438000,-1158.67285135,0.0001376,2]
[423223093,1779947438000,-2936.2500719,0.0001376,2]
[423223094,1779947438000,-435.08935404,0.00013785,2]
[423223095,1779947438000,-729.33,0.00013799,2]
[423223098,1779947438000,-150.0,0.00013862,2]
[423223096,1779947438000,-150.0,0.00013821,2]
[423223100,1779947438000,-150.0,0.00013904,2]
[423223097,1779947438000,-166.66,0.00013836,2]
[423223101,1779947438000,-588.53920696,0.00013915,2]
[423223099,1779947438000,-150.0,0.00013862,2]
[423223102,1779947438000,-195.16910814,0.00013915,2]
[423223104,1779947438000,-500.0,0.00013915,2]
[423223132,1779947440000,-387.83,0.00014131,2]
[423223148,1779947440000,-166.66,0.00014247,2]
[423223137,1779947440000,-435.08935404,0.00014157,2]
[423223133,1779947440000,-478.44,0.00014143,2]
[423223129,1779947440000,-166.66,0.0001411,2]
[423223147,1779947440000,-150.0,0.00014237,2]
[423223131,1779947440000,-150.0,0.0001413,2]
[423223126,1779947440000,-150.0,0.0001405,2]
[423223134,1779947440000,-478.44,0.00014144,2]
[423223135,1779947440000,-475.60253545,0.0001415,2]
[423223128,1779947440000,-600.0,0.000141,5]
[423223127,1779947440000,-150.0,0.0001407,2]
[423223125,1779947440000,-7128.00629998,0.00014045,2]
[423223124,1779947440000,-730.1,0.00014045,2]
[423223123,1779947440000,-616.95700799,0.00014045,2]
[423223141,1779947440000,-150.0,0.00014237,2]
[423223130,1779947440000,-729.33,0.00014119,2]
[423223138,1779947440000,-1300.0,0.000142,5]
[423223153,1779947440000,-150.0,0.0001432,2]
[423223136,1779947440000,-150.0,0.00014154,2]
[423223139,1779947440000,-174.4291325,0.00014201,2]
[423223156,1779947440000,-150.0,0.00014344,2]
[423223157,1779947440000,-166.66,0.00014384,2]
[423223158,1779947440000,-2700.0,0.000144,5]
[423223154,1779947440000,-6633.6358757,0.00014328,2]
[423223159,1779947440000,-150.0,0.00014404,2]
[423223149,1779947440000,-433.0,0.00014283,2]
[423223150,1779947440000,-2000.0,0.0001429,2]
[423223160,1779947440000,-9107.37013036,0.00014404,2]
[423223152,1779947440000,-190.07,0.00014303,2]
[423223155,1779947440000,-8929.97806079,0.0001433,2]
[423223146,1779947440000,-150.0,0.00014237,2]
[423223143,1779947440000,-150.0,0.00014237,2]
[423223144,1779947440000,-150.0,0.00014237,2]
[423223142,1779947440000,-150.0,0.00014237,2]
[423223140,1779947440000,-21541.1888155,0.00014201,2]
[423223145,1779947440000,-150.0,0.00014237,2]
[423223151,1779947440000,-2000.0,0.000143,5]
[423223162,1779947441000,-234.01580982,0.00014404,2]
[423223161,1779947441000,-561.22993896,0.00014404,2]
[423223175,1779947443000,-150.0,0.00014424,2]
[423223174,1779947443000,-335.12870325,0.00014404,2]
[423223176,1779947443000,-3928.06245047,0.00014459,2]
[423223177,1779947443000,-707.48499536,0.00014459,2]
[423223186,1779947444000,-150.0,0.00014487,2]
[423223184,1779947444000,-471.16369473,0.00014459,2]
[423223185,1779947444000,-150.0,0.00014487,2]
[423223183,1779947444000,-4252.84555163,0.00014459,2]
[423223181,1779947444000,-503.0,0.00014459,2]
[423223182,1779947444000,-375.18789012,0.00014459,2]
[423223187,1779947445000,-150.0,0.00014487,2]
[423223189,1779947445000,-2476.45583009,0.000145,5]
[423223191,1779947445000,-500.0,0.0001451,2]
[423223188,1779947445000,-823.54416991,0.000145,5]
[423223190,1779947445000,-500.0,0.0001451,2]
[423223195,1779947445000,-219.65705896,0.0001451,2]
[423223196,1779947445000,-280.34294104,0.0001451,2]
[423223197,1779947445000,-432.76945461,0.0001451,2]
[423223192,1779947445000,-500.0,0.0001451,2]
[423223193,1779947445000,-500.0,0.0001451,2]
[423223194,1779947445000,-500.0,0.0001451,2]
[423223206,1779947446000,-600.39430558,0.00014511,2]
[423223205,1779947446000,-458.38907396,0.00014511,2]
[423223203,1779947446000,-764.78,0.00014511,2]
[423223204,1779947446000,-731.32184253,0.00014511,2]
[423223201,1779947446000,-1343.71461013,0.00014511,2]
[423223202,1779947446000,-34004.859672,0.00014511,2]
[423223200,1779947446000,-5128.83009557,0.00014511,2]
[423223198,1779947446000,-435.08935404,0.00014342,2]
[423223199,1779947446000,-67.23054539,0.0001451,2]
[423223221,1779947648000,169.415725,7.945e-05,2]
[423223222,1779947990000,-152.0,0.00011878,7]
[423223223,1779947998000,182.15,0.00010482,2]
[423223224,1779948043000,-202.0,0.0001185,2]
[423223227,1779948060000,323.82,6.857e-05,2]
[423223226,1779948060000,323.82,6.514e-05,2]
[423223229,1779948060000,323.82,7.543e-05,2]
[423223228,1779948060000,323.82,7.2e-05,2]
[423223230,1779948060000,323.82,7.886e-05,2]
[423223231,1779948061000,323.82,8.229e-05,2]
[423223232,1779948061000,323.82,8.572e-05,2]
[423223234,1779948061000,323.82,9.257e-05,2]
[423223235,1779948061000,323.82,9.6e-05,2]
[423223233,1779948061000,323.82,8.915e-05,2]
[423223238,1779948062000,323.82,0.00010629,2]
[423223237,1779948062000,323.82,0.00010286,2]
[423223236,1779948062000,323.82,9.943e-05,2]
[423223240,1779948097000,-323.82,0.00010972,2]
[423223241,1779948100000,150.0,0.00010643,2]
[423223242,1779948150000,-323.82,0.00011315,2]
[423223243,1779948203000,-323.82,0.00011658,2]
[423223244,1779948257000,-482.03836065,0.00011878,2]
[423223245,1779948310000,-150.0,0.00011996,2]
[423223246,1779948363000,-1555.6943786,0.00011996,10]
[423223247,1779948417000,-323.82,0.00012,2]
[423223248,1779948451000,-150.0,0.00012115,2]
[423223253,1779948451000,-79.14633385,0.00012475,2]
[423223251,1779948451000,-150.0,0.00012355,2]
[423223252,1779948451000,-177.51755269,0.00012371,2]
[423223250,1779948451000,-323.82,0.00012343,2]
[423223249,1779948451000,-150.0,0.00012235,2]
[423223254,1779948470000,-70.85366615,0.00012475,2]
[423223255,1779948540000,1000.0,0.00028078,120]
[423223285,1779948632000,-323.82,0.00013029,2]
[423223286,1779948632000,-168.50888201,0.00013031,7]
[423223288,1779948632000,-200.0,0.00013203,2]
[423223289,1779948632000,-869.89,0.00013203,2]
[423223287,1779948632000,-151.0,0.0001307,2]
[423223290,1779948632000,-166.66,0.00013479,2]
[423223292,1779948632000,-150.0,0.00013488,2]
[423223303,1779948632000,-150.0,0.00013488,2]
[423223294,1779948632000,-150.0,0.00013488,2]
[423223261,1779948632000,-323.82,0.00012686,2]
[423223298,1779948632000,-150.54665205,0.00013488,2]
[423223317,1779948632000,-500.0,0.00013698,2]
[423223304,1779948632000,-150.0,0.00013488,2]
[423223311,1779948632000,-156.5964,0.00013599,2]
[423223306,1779948632000,-150.0,0.00013488,2]
[423223308,1779948632000,-150.0,0.00013553,2]
[423223262,1779948632000,-167.72,0.00012757,2]
[423223313,1779948632000,-150.0,0.00013618,2]
[423223322,1779948632000,-176.08,0.00013699,2]
[423223283,1779948632000,-150.0,0.00012946,2]
[423223296,1779948632000,-150.34515289,0.00013488,2]
[423223281,1779948632000,-150.0,0.00012945,2]
[423223282,1779948632000,-150.0,0.00012946,2]
[423223263,1779948632000,-150.0,0.00012779,2]
[423223264,1779948632000,-177.51755269,0.00012808,2]
[423223265,1779948632000,-150.0,0.00012816,2]
[423223267,1779948632000,-154.79,0.00012853,2]
[423223266,1779948632000,-2000.0,0.00012851,2]
[423223268,1779948632000,-500.0,0.0001288,2]
[423223269,1779948632000,-150.0,0.00012908,2]
[423223271,1779948632000,-300.0,0.00012919,2]
[423223284,1779948632000,-3718.75,0.00012949,2]
[423223275,1779948632000,-161.9,0.0001292,2]
[423223273,1779948632000,-999.99,0.00012919,2]
[423223272,1779948632000,-1200.0,0.00012919,2]
[423223274,1779948632000,-150.99,0.0001292,2]
[423223277,1779948632000,-299.99,0.0001292,2]
[423223276,1779948632000,-10468.64,0.0001292,2]
[423223278,1779948632000,-9999.99,0.0001292,2]
[423223279,1779948632000,-9682.96,0.0001292,2]
[423223280,1779948632000,-150.0,0.00012943,2]
[423223270,1779948632000,-300.0,0.00012919,2]
[423223315,1779948632000,-150.0,0.00013683,2]
[423223301,1779948632000,-150.0,0.00013488,2]
[423223320,1779948632000,-253.55,0.00013699,2]
[423223345,1779948632000,-150.0,0.00013987,2]
[423223346,1779948632000,-150.0,0.00014009,2]
[423223347,1779948632000,-255.0,0.00014045,2]
[423223348,1779948632000,-150.0,0.00014074,2]
[423223349,1779948632000,-150.0,0.00014087,2]
[423223350,1779948632000,-166.66,0.0001411,2]
[423223351,1779948632000,-150.0,0.00014139,2]
[423223353,1779948632000,-420.0,0.00014169,2]
[423223355,1779948632000,-1680.0,0.00014211,2]
[423223354,1779948632000,-150.0,0.00014204,2]
[423223352,1779948632000,-300.0,0.00014169,2]
[423223356,1779948632000,-150.0,0.00014237,2]
[423223357,1779948632000,-150.0,0.00014237,2]
[423223359,1779948632000,-166.66,0.00014247,2]
[423223360,1779948632000,-150.0,0.0001427,2]
[423223358,1779948632000,-150.0,0.00014237,2]
[423223361,1779948632000,-4174.7111,0.00014273,2]
[423223362,1779948632000,-22754.8215,0.00014273,2]
[423223319,1779948632000,-304.26,0.00013699,2]
[423223342,1779948632000,-166.66,0.00013973,2]
[423223343,1779948632000,-150.0,0.00013987,2]
[423223323,1779948632000,-880.4,0.00013699,2]
[423223340,1779948632000,-2300.0,0.000139,5]
[423223344,1779948632000,-150.0,0.00013987,2]
[423223318,1779948632000,-166.66,0.00013699,2]
[423223321,1779948632000,-211.29,0.00013699,2]
[423223324,1779948632000,-200.0,0.00013699,2]
[423223326,1779948632000,-150.0,0.00013737,2]
[423223327,1779948632000,-150.0,0.00013737,2]
[423223328,1779948632000,-150.0,0.00013748,2]
[423223329,1779948632000,-150.0,0.00013787,2]
[423223330,1779948632000,-1500.0,0.000138,5]
[423223325,1779948632000,-700.0,0.000137,5]
[423223332,1779948632000,-150.0,0.00013813,2]
[423223331,1779948632000,-162.87,0.0001381,2]
[423223334,1779948632000,-300.0,0.00013855,2]
[423223335,1779948632000,-300.0,0.00013855,2]
[423223337,1779948632000,-300.0,0.00013855,2]
[423223336,1779948632000,-300.0,0.00013855,2]
[423223339,1779948632000,-150.0,0.00013879,2]
[423223338,1779948632000,-300.0,0.00013855,2]
[423223341,1779948632000,-150.0,0.00013944,2]
[423223333,1779948632000,-166.66,0.00013836,2]
[423223376,1779948633000,-5130.55099134,0.00014367,2]
[423223380,1779948633000,-1677.50056944,0.00014376,2]
[423223379,1779948633000,-4618.4947605,0.00014376,2]
[423223381,1779948633000,-700.05,0.00014376,2]
[423223383,1779948633000,-162.87,0.0001438,2]
[423223387,1779948633000,-71125.3960307,0.00014399,2]
[423223384,1779948633000,-166.66,0.00014384,2]
[423223385,1779948633000,-150.0,0.00014387,2]
[423223382,1779948633000,-6306.1323988,0.00014376,2]
[423223377,1779948633000,-3436.58941006,0.0001437,2]
[423223386,1779948633000,-383.30069551,0.00014395,2]
[423223378,1779948633000,-1802.302373,0.00014373,2]
[423223365,1779948633000,-500.0,0.00014299,2]